bitfinex/quotes_ETHUSD_20250414
["timestamp","ask_amount","ask_price","bid_price","bid_amount"]
[1744647415257,6.14,1626.4,1626.0,0.615005]
[1744647415560,15.2879,1626.6,1626.3,6.14881]
[1744647415856,6.14,1626.6,1626.4,6.14817]
[1744647416025,6.14,1626.6,1626.4,12.29661]
[1744647416209,6.14,1626.6,1626.4,6.14817]
[1744647417039,6.14,1626.6,1626.4,12.29661]
[1744647417210,6.14,1626.6,1626.5,6.14817]
[1744647417408,6.14,1626.7,1626.6,6.14779]
[1744647417627,6.14,1626.9,1626.8,6.14703]
[1744647417845,6.14,1627.0,1626.6,6.14764]
[1744647418021,12.28648,1627.0,1626.7,6.14718]
[1744647418222,6.14666,1626.9,1626.6,12.29542]
[1744647418443,6.14666,1626.9,1626.6,6.60770134]
[1744647418638,12.28648,1627.0,1626.6,6.60767134]
[1744647418871,12.28648,1627.0,1626.7,6.14737]
[1744647419073,12.28646,1627.0,1626.7,6.14737]
[1744647419272,18.43293,1627.0,1626.7,6.14737]
[1744647419474,18.43293,1627.0,1626.6,12.75535134]
[1744647419933,12.28646,1627.0,1626.7,6.14736]
[1744647420132,12.28646,1627.0,1626.6,6.60773134]
[1744647420368,18.43295,1627.0,1626.6,12.75540134]
[1744647420671,6.14667,1626.9,1626.6,12.75533134]
[1744647420869,12.29366,1626.9,1626.5,8.795844]
[1744647421072,6.14,1626.8,1626.2,9.9395]
[1744647421293,6.14792,1626.6,1626.3,6.14877]
[1744647421429,6.14,1626.5,1626.0,1.90156484]
[1744647421631,6.14,1626.5,1626.1,0.06148877]
[1744647421866,6.14894,1626.3,1626.0,2.49797633]
[1744647422176,12.29803,1626.3,1626.0,8.64786633]
[1744647422381,12.29892,1626.2,1626.0,1.06707633]
[1744647422586,6.14931,1626.2,1625.8,22.3091]
[1744647422872,6.14931,1626.2,1625.9,6.15032]
[1744647423077,6.14994,1626.1,1625.8,1.4766]
[1744647423261,12.2883,1626.5,1625.9,6.15031]
[1744647423443,6.14925,1626.3,1625.9,6.15031]
[1744647423645,6.14876,1626.4,1626.0,6.14994]
[1744647423833,6.14871,1626.4,1626.0,6.14994]
[1744647424165,6.14871,1626.4,1626.0,12.29989]
[1744647424370,6.14,1626.5,1625.9,5.90678638]
[1744647424371,12.28821,1626.5,1625.9,1.84423634]
[1744647424584,6.14942,1626.2,1625.9,6.15042]
[1744647424883,6.15023,1626.0,1625.8,1.4766]
[1744647425173,6.15023,1626.0,1625.6,16.06284]
[1744647425347,6.14,1626.0,1625.7,12.30216]
[1744647425548,6.14,1626.0,1625.9,6.15043]
[1744647425761,6.14,1626.0,1625.8,6.15063]
[1744647425950,6.14,1626.0,1625.9,6.15043]
[1744647427447,6.14,1626.0,1625.9,7.62503]
[1744647427683,12.28828,1626.5,1626.2,6.14919]
[1744647427829,6.14,1626.5,1626.2,12.29838]
[1744647428176,6.14,1626.5,1626.2,7.52228]
[1744647428374,6.14,1626.5,1626.3,6.14872]
[1744647428547,6.14,1626.5,1626.3,12.29753]
[1744647428747,6.14,1626.5,1626.3,6.14872]
[1744647428951,6.14743,1626.7,1626.3,7.515686]
[1744647429150,12.28709,1626.8,1626.5,6.14806]
[1744647429151,6.14,1626.8,1626.5,6.14806]
[1744647429454,6.14,1626.8,1626.6,6.14777]
[1744647429782,6.14704,1626.8,1626.5,6.14806]
[1744647429954,6.14,1626.9,1626.5,6.14806]
[1744647429955,12.28688,1626.9,1626.6,6.20914057]
[1744647430150,12.28683,1626.9,1626.6,6.20914057]
[1744647430372,6.1476,1626.7,1626.4,6.14838]
[1744647430570,12.29521,1626.7,1626.4,6.14838]
[1744647430943,6.14798,1626.6,1626.3,7.515936]
[1744647431280,6.14714,1626.8,1626.4,12.29684]
[1744647431480,6.14751,1626.7,1626.4,6.14842]
[1744647431660,6.14751,1626.7,1626.3,7.515936]
[1744647431661,6.14751,1626.7,1626.3,1.367116]
[1744647431865,6.14,1626.9,1626.4,4.12402514]
[1744647432086,6.14,1626.9,1626.8,6.14703]
[1744647432268,0.4010058,1627.1,1627.0,6.14628]
[1744647432639,0.4010058,1627.1,1627.0,10.20883004]
[1744647432772,0.4010058,1627.1,1627.0,6.20773141]
[1744647432943,0.4010058,1627.1,1626.8,11.58165004]
[1744647433145,0.4010058,1627.1,1626.8,1.3721]
[1744647433146,6.14647,1627.0,1626.8,1.3721]
[1744647433543,0.4010058,1627.1,1626.8,7.58054326]
[1744647433771,0.4010058,1627.1,1626.9,6.14664]
[1744647433976,6.5470658,1627.1,1626.8,7.519]
[1744647434179,6.5470658,1627.1,1626.8,7.58046036]
[1744647434346,0.4010058,1627.1,1626.8,7.58044036]
[1744647434557,0.4010058,1627.1,1626.9,6.14654]
[1744647434756,0.4010058,1627.1,1627.0,6.14628]
[1744647434993,0.4010058,1627.1,1626.9,6.14651]
[1744647435291,0.4010058,1627.1,1626.8,13.85276803]
[1744647435457,12.6932158,1627.1,1626.8,7.51906]
[1744647435664,0.4010058,1627.1,1626.8,1.3721]
[1744647435853,0.4010058,1627.1,1626.9,6.1465]
[1744647436054,0.4010058,1627.1,1627.0,10.82028491]
[1744647436255,0.4010058,1627.1,1627.0,12.12783004]
[1744647436471,0.4010058,1627.1,1627.0,14.56991004]
[1744647438084,0.4010058,1627.1,1627.0,17.56991004]
[1744647439010,0.05,1627.4,1627.3,11.63799004]
[1744647439163,0.05,1627.4,1627.3,20.16699004]
[1744647439864,0.05,1627.4,1627.3,20.61669241]
[1744647440120,0.05,1627.4,1627.3,23.90742965]
[1744647441174,0.05,1627.4,1627.3,19.84487961]
[1744647441371,0.05,1627.4,1627.3,8.529]
[1744647441714,0.05,1627.4,1627.2,6.14534]
[1744647442476,0.05,1627.4,1627.1,13.727]
[1744647442676,0.05,1627.4,1627.2,6.1455]
[1744647442878,0.05,1627.4,1627.2,6.14541]
[1744647443076,0.05,1627.4,1627.2,7.518077]
[1744647443417,0.05,1627.4,1627.2,13.663477]
[1744647443571,0.05,1627.4,1627.3,6.14514]
[1744647443767,0.05,1627.4,1627.2,7.97587793]
[1744647443983,0.05,1627.4,1627.3,6.20658322]
[1744647444183,0.05,1627.4,1627.3,12.31996371]
[1744647444419,0.05,1627.4,1627.3,12.25852049]
[1744647444588,0.05,1627.4,1627.3,1.41824512]
[1744647444785,0.05,1627.4,1627.3,7.62482685]
[1744647445154,0.05,1627.4,1627.3,13.73832049]
[1744647445683,0.1904421,1627.4,1627.3,14.28832049]
[1744647445917,0.05,1627.4,1627.3,14.28832049]
[1744647446116,0.1904421,1627.4,1627.3,14.28832049]
[1744647446319,0.05,1627.4,1627.3,14.28832049]
[1744647446624,0.05,1627.4,1627.3,9.59318512]
[1744647446829,0.1904421,1627.4,1627.3,9.59318512]
[1744647446982,0.05,1627.4,1627.3,9.59318512]
[1744647447179,0.1904421,1627.4,1627.3,9.04318512]
[1744647447422,0.1904421,1627.4,1627.3,9.10462186]
[1744647447787,2.05,1627.4,1627.3,9.10462186]
[1744647448220,2.19141013,1627.4,1627.3,14.34975723]
[1744647448526,2.19141013,1627.4,1627.3,14.28832049]
[1744647448725,2.05,1627.4,1627.3,9.04318512]
[1744647449895,2.05,1627.4,1627.3,2.89804512]
[1744647450095,2.05,1627.4,1627.3,1.41824512]
[1744647450423,2.05,1627.4,1627.2,6.60315093]
[1744647450628,2.05,1627.4,1627.2,0.45781093]
[1744647450789,2.05,1627.4,1627.1,13.72089]
[1744647451132,2.05,1627.4,1627.2,6.14549]
[1744647451773,2.05,1627.4,1627.1,7.57511]
[1744647451973,6.14584,1627.2,1627.0,47.908]
[1744647452263,6.14625,1627.1,1626.8,8.502]
[1744647452430,6.14639,1627.0,1626.8,8.502]
[1744647452656,6.14639,1627.0,1626.4,1.4764]
[1744647452657,6.507,1627.0,1626.4,1.4764]
[1744647452833,6.1472,1626.8,1626.5,6.14809]
[1744647453055,6.14,1628.3,1627.0,1.466]
[1744647453366,6.1376,1629.3,1628.7,1.466]
[1744647453518,5.17622288,1629.5,1628.8,0.06139731]
[1744647453718,6.13835,1629.2,1628.4,12.968]
[1744647453923,6.13908,1629.0,1628.4,8.05996761]
[1744647454144,6.13988,1628.7,1628.4,0.45316761]
[1744647454345,3.0,1628.8,1628.0,0.959163]
[1744647454530,6.14212,1628.1,1628.0,0.959163]
[1744647454750,1.228399,1628.1,1628.0,0.959163]
[1744647455065,9.14212,1628.1,1628.0,0.959163]
[1744647455263,9.14212,1628.1,1628.0,0.59947688]
[1744647458548,6.14212,1628.1,1628.0,0.59947688]
[1744647458761,6.14,1628.3,1628.0,0.59947688]
[1744647459068,0.0394,1628.1,1628.0,0.59947688]
[1744647459364,12.31979,1628.6,1628.1,6.14181]
[1744647459561,7.372739,1628.5,1628.1,6.14181]
[1744647459724,13.513679,1628.5,1628.0,7.5276]
[1744647459925,13.513679,1628.5,1628.1,6.14203]
[1744647460126,13.513679,1628.5,1628.0,6.1425]
[1744647460365,6.14107,1628.4,1628.0,6.1425]
[1744647460566,6.8783749,1628.4,1628.0,6.1425]
[1744647460867,13.0196849,1628.4,1627.9,12.75260582]
[1744647461051,6.8783749,1628.4,1628.0,12.28482]
[1744647461424,12.31975,1628.6,1628.2,6.14175]
[1744647461827,12.31975,1628.6,1628.0,6.14236]
[1744647461828,6.14113,1628.4,1628.0,6.14236]
[1744647462030,5.0,1628.5,1627.8,1.3851]
[1744647462228,6.14226,1628.1,1627.7,6.14335]
[1744647462526,11.14099,1628.5,1627.8,6.14289]
[1744647462527,6.14159,1628.3,1627.8,6.14289]
[1744647462734,6.14159,1628.3,1627.7,6.14357]
[1744647462735,1.228285,1628.3,1627.7,6.14357]
[1744647462987,6.14257,1628.0,1627.6,6.14383]
[1744647463273,6.18154,1628.1,1627.7,6.14346]
[1744647463570,12.28254,1628.0,1627.6,6.14378]
[1744647463873,18.42537,1628.0,1627.6,6.14378]
[1744647464065,12.28254,1628.0,1627.7,6.14363]
[1744647464266,6.14,1628.0,1627.8,6.14309]
[1744647464430,6.14,1628.0,1627.8,12.28622]
[1744647464770,2.0,1628.5,1628.4,7.60149]
[1744647465064,2.0,1628.5,1628.4,11.21288801]
[1744647465237,2.0,1628.5,1628.4,11.15149]
[1744647465435,2.0,1628.5,1628.4,12.33076]
[1744647465624,2.0,1628.5,1628.4,1.4605]
[1744647465828,2.0,1628.5,1628.4,6.14099]
[1744647466037,2.11731858,1628.5,1628.4,6.14099]
[1744647466267,2.11731858,1628.5,1628.4,6.20239353]
[1744647466432,2.11731858,1628.5,1628.4,6.14099]
[1744647466633,2.0,1628.5,1628.4,6.14099]
[1744647466965,2.1407823,1628.5,1628.4,6.14099]
[1744647467266,2.1407823,1628.5,1628.1,6.14212]
[1744647467267,8.2815523,1628.5,1628.1,6.14212]
[1744647467466,2.1407823,1628.5,1628.2,6.14161]
[1744647467735,6.14156,1628.3,1627.9,6.1427]
[1744647467884,6.14204,1628.2,1627.8,6.14324]
[1744647468048,12.4003738,1628.2,1627.8,6.14324]
[1744647468382,12.28452,1628.1,1627.7,6.14351]
[1744647468686,6.28145692,1628.0,1627.7,6.14351]
[1744647469240,0.13883692,1628.0,1627.7,0.06142972]
[1744647469442,6.14356,1627.8,1627.4,6.14462]
[1744647469751,12.28329,1627.8,1627.4,6.14459]
[1744647469991,6.14,1627.8,1627.5,6.14423]
[1744647470156,12.28337,1627.8,1627.5,6.14423]
[1744647470557,12.28337,1627.8,1627.4,6.907419]
[1744647470892,6.14431,1627.6,1627.2,6.14526]
[1744647471186,6.18392,1627.5,1627.0,13.75675]
[1744647471356,6.14491,1627.4,1627.0,7.61051]
[1744647471557,6.14,1627.3,1626.7,1.4644]
[1744647471760,6.14652,1627.0,1626.7,1.4644]
[1744647471956,6.14,1627.3,1626.9,6.14638]
[1744647472156,6.14,1627.3,1627.1,6.14586]
[1744647472355,6.14479,1627.4,1627.0,7.61064]
[1744647472573,6.14479,1627.4,1627.0,13.75672]
[1744647472748,6.14479,1627.4,1627.1,6.14588]
[1744647472948,6.14521,1627.3,1627.0,2.840072]
[1744647473376,6.1794,1627.5,1627.0,2.840072]
[1744647473582,12.29006,1627.4,1627.0,7.61056]
[1744647473781,6.14516,1627.3,1627.0,7.61056]
[1744647474193,12.32399,1627.5,1626.8,7.58992]
[1744647474393,6.14542,1627.3,1626.9,6.14663]
[1744647474599,6.14542,1627.3,1626.9,12.29312]
[1744647474797,6.14542,1627.3,1627.0,6.14611]
[1744647474987,6.14536,1627.3,1627.0,6.14611]
[1744647475496,6.14477,1627.4,1626.9,1.373622]
[1744647475697,6.14574,1627.2,1626.9,1.373622]
[1744647475861,6.1794,1627.5,1626.8,1.4431]
[1744647476061,6.14612,1627.1,1626.8,6.14703]
[1744647476263,6.14639,1627.0,1626.7,6.14728]
[1744647476465,6.14639,1627.0,1626.7,12.29452]
[1744647476662,6.14639,1627.0,1626.7,7.824952]
[1744647476887,6.1472,1626.8,1626.5,6.14803]
[1744647477197,12.29445,1626.8,1626.4,70.09352]
[1744647477498,6.1472,1626.8,1626.5,6.14813]
[1744647477724,6.1472,1626.8,1626.4,16.06001]
[1744647477872,6.14,1627.0,1626.5,0.06147538]
[1744647478072,6.14682,1626.9,1626.5,6.14801]
[1744647478273,6.14886,1626.4,1626.1,0.05]
[1744647478585,18.43778,1626.4,1626.1,0.05]
[1744647478783,6.14894,1626.3,1626.1,1.284987]
[1744647479001,6.1493,1626.2,1626.1,0.05]
[1744647479365,12.2893,1626.2,1626.1,0.05]
[1744647479980,15.2893,1626.2,1626.1,0.05]
[1744647480171,6.15069,1625.9,1625.2,9.9099]
[1744647480496,6.15106,1625.8,1625.3,6.15237]
[1744647480702,12.29047,1625.9,1625.6,6.15145]
[1744647480859,6.13999,1625.9,1625.4,6.767487]
[1744647481060,6.13999,1625.9,1625.5,6.15187]
[1744647481364,6.15081,1625.8,1625.4,0.615237]
[1744647481581,6.17939,1625.7,1625.2,1.4279]
[1744647481787,6.15157,1625.6,1625.1,0.05]
[1744647481987,6.13999,1625.5,1625.1,0.05]
[1744647482186,6.15308,1625.2,1625.1,0.05]
[1744647482390,6.13999,1625.2,1625.1,0.05]
[1744647483525,12.29307,1625.2,1625.1,0.05]
[1744647484424,6.13999,1625.2,1625.1,0.05]
[1744647486400,6.13999,1625.2,1625.1,6.20346]
[1744647486924,6.13999,1625.2,1625.1,0.05]
[1744647487139,6.13999,1625.2,1625.1,6.823827]
[1744647487287,12.29086,1625.8,1625.4,6.15212]
[1744647487482,6.13999,1625.8,1625.4,6.15233]
[1744647487731,6.13999,1625.8,1625.7,6.15119]
[1744647488029,6.13999,1625.8,1625.7,7.381434]
[1744647488624,2.0,1625.9,1625.8,6.15081]
[1744647489066,2.0,1625.9,1625.8,6.76230853]
[1744647489210,6.13999,1626.6,1626.5,6.14817]
[1744647489418,6.13999,1626.6,1626.4,6.14845]
[1744647489612,6.14909,1626.3,1625.9,6.15006]
[1744647489811,6.14972,1626.1,1625.7,7.381394]
[1744647490118,12.28979,1626.1,1625.5,4.3975]
[1744647490333,6.15071,1625.9,1625.5,1.3975]
[1744647490722,6.15071,1625.9,1625.5,1.45901307]
[1744647490924,12.29008,1626.0,1625.6,6.15127]
[1744647490925,6.13999,1626.0,1625.6,6.15127]
[1744647491147,6.13999,1626.2,1625.6,6.15127]
[1744647491339,12.28937,1626.2,1625.7,0.615127]
[1744647491540,6.13999,1626.2,1625.8,0.06149721]
[1744647491948,6.13999,1626.2,1625.6,6.70139]
[1744647491949,12.28932,1626.2,1625.6,6.70139]
[1744647492253,0.0266,1625.9,1625.2,1.48]
[1744647492548,12.30227,1625.8,1625.2,1.48]
[1744647492771,0.0266,1625.9,1625.2,1.93611256]
[1744647493048,6.15112,1625.8,1625.2,8.08901256]
[1744647493267,6.15102,1625.8,1625.3,0.870417]
[1744647493423,6.15121,1625.7,1625.3,0.80890126]
[1744647493746,6.15169,1625.6,1625.2,1.48]
[1744647493948,6.15196,1625.5,1625.2,1.48]
[1744647494330,6.15245,1625.4,1625.2,1.48]
[1744647494714,6.13999,1625.8,1625.2,1.48]
[1744647494913,6.15119,1625.7,1625.2,1.48]
[1744647495258,6.15263,1625.4,1625.1,0.05]
[1744647495447,6.15206,1625.5,1625.1,0.05]
[1744647495638,6.15247,1625.4,1625.1,3.05]
[1744647495955,12.30501,1625.4,1625.1,3.05]
[1744647496114,6.153,1625.3,1625.1,0.05]
[1744647496455,6.15084,1625.8,1625.5,1.4297]
[1744647496456,6.15097,1625.8,1625.5,1.4297]
[1744647496661,6.1513,1625.7,1625.5,1.4297]
[1744647496862,12.30269,1625.7,1625.5,1.4297]
[1744647497042,6.15087,1625.8,1625.5,1.4297]
[1744647497244,6.15137,1625.7,1625.5,1.4297]
[1744647497457,6.15194,1625.6,1625.2,12.9714]
[1744647497737,6.15203,1625.5,1625.2,15.42914831]
[1744647498173,6.15121,1625.7,1625.3,6.21421821]
[1744647498334,6.13999,1626.0,1625.5,0.55]
[1744647498768,6.15116,1625.8,1625.5,0.55]
[1744647499066,6.15139,1625.7,1625.4,0.55]
[1744647499269,6.15185,1625.6,1625.2,15.42914831]
[1744647499470,6.15157,1625.6,1625.2,12.42914831]
[1744647499637,12.29118,1625.7,1625.2,12.42914831]
[1744647499638,6.15271,1625.3,1625.2,9.9714]
[1744647499843,6.15253,1625.4,1625.2,9.9714]
[1744647500245,12.30504,1625.4,1625.2,9.9714]
[1744647500573,6.15271,1625.3,1625.1,0.05]
[1744647500775,6.15308,1625.2,1625.1,0.05]
[1744647501473,6.15252,1625.4,1625.1,0.05]
[1744647501633,6.15273,1625.3,1625.1,0.809163]
[1744647501833,6.15308,1625.2,1625.1,0.05]
[1744647502260,6.15215,1625.5,1625.1,0.11152925]
[1744647502565,6.1524,1625.4,1625.1,0.05]
[1744647503135,6.15285,1625.3,1625.1,0.05]
[1744647503561,6.15308,1625.2,1625.1,0.05]
[1744647503864,12.30571,1625.3,1625.1,0.05]
[1744647504081,12.30503,1625.4,1625.1,0.05]
[1744647504282,9.17806,1625.7,1625.1,0.864147]
[1744647504483,6.15308,1625.2,1625.1,0.05]
[1744647504664,6.15266,1625.4,1625.1,0.05]
[1744647504989,12.30598,1625.3,1625.1,0.05]
[1744647505182,6.15153,1625.7,1625.3,6.15239]
[1744647505487,12.30334,1625.6,1625.2,6.70296]
[1744647505687,6.15158,1625.6,1625.3,6.822896]
[1744647506286,6.15158,1625.6,1625.4,0.06151548]
[1744647506489,6.15158,1625.6,1625.4,1.49371548]
[1744647506691,6.1506,1625.9,1625.5,6.70188]
[1744647506898,2.0,1626.2,1625.9,6.15026]
[1744647507084,2.0,1626.2,1626.1,6.14968]
[1744647507390,2.0,1626.2,1626.0,1.4184]
[1744647507554,2.0,1626.2,1626.0,1.47989262]
[1744647507755,8.14962,1626.2,1626.0,1.4184]
[1744647507950,2.0,1626.2,1626.0,1.4184]
[1744647508158,2.0,1626.2,1626.1,6.2111727]
[1744647508495,2.0,1626.2,1626.1,15.17368]
[1744647509376,2.0,1626.2,1626.1,14.62368]
[1744647509583,2.0,1626.2,1626.1,15.17368]
[1744647510198,2.0,1626.2,1626.0,2.18141624]
[1744647510368,8.14951,1626.2,1625.8,1.9431]
[1744647510690,8.14951,1626.2,1625.9,6.21190304]
[1744647511281,2.0,1626.2,1625.9,6.15028]
[1744647511694,2.0,1626.2,1625.9,5.99652847]
[1744647511891,2.0,1626.2,1625.8,1.3931]
[1744647512061,6.15004,1626.1,1625.8,7.54384]
[1744647512261,6.14989,1626.1,1625.8,7.54384]
[1744647512567,6.14989,1626.1,1625.8,7.60533818]
[1744647512765,6.14989,1626.1,1625.8,9.828379]
[1744647513100,2.0,1626.2,1625.8,9.828309]
[1744647513409,8.14945,1626.2,1625.9,6.15038]
[1744647513557,8.14945,1626.2,1626.0,0.06149329]
[1744647513754,6.14968,1626.1,1626.0,0.06149329]
[1744647514002,6.14968,1626.1,1625.8,3.61614082]
[1744647514299,6.1506,1625.9,1625.7,8.474]
[1744647514455,6.15006,1626.0,1625.6,1.3526]
[1744647514655,6.15081,1625.8,1625.3,1.4857]
[1744647514899,6.15186,1625.6,1625.3,7.63824]
[1744647515054,0.0266,1626.1,1625.5,6.15195]
[1744647515253,12.30044,1626.0,1625.6,0.06150684]
[1744647515485,0.0266,1626.1,1625.6,6.21293684]
[1744647515486,6.15062,1625.9,1625.6,6.21293684]
[1744647515688,6.17633,1626.1,1625.5,6.15186]
[1744647515854,12.30232,1625.8,1625.4,20.7775]
[1744647516055,12.30113,1625.9,1625.6,6.15148]
[1744647516380,6.17636,1626.1,1625.7,1.4349]
[1744647516561,6.15016,1626.0,1625.7,7.58596]
[1744647516896,14.29895,1626.2,1625.8,0.06150242]
[1744647517065,2.0,1626.2,1626.0,6.15005]
[1744647517269,2.0,1626.2,1626.1,8.219485]
[1744647517456,2.0,1626.2,1626.1,8.28097216]
[1744647517657,2.0,1626.2,1626.1,8.83097216]
[1744647517996,2.0,1626.2,1626.1,11.769485]
[1744647518153,2.0,1626.2,1626.1,11.83096756]
[1744647519366,2.0,1626.2,1626.1,11.769485]
[1744647519706,2.0,1626.2,1626.1,17.08531039]
[1744647519908,2.0,1627.0,1626.8,6.147]
[1744647520110,2.0,1627.0,1626.9,10.37281361]
[1744647520266,6.14331,1627.8,1627.4,6.14471]
[1744647520467,6.14493,1627.4,1627.1,9.954]
[1744647520695,6.14551,1627.3,1627.0,6.14626]
[1744647520865,3.0513,1627.9,1627.0,6.14626]
[1744647520866,6.14462,1627.5,1627.1,1.164626]
[1744647521082,6.1446,1627.5,1627.1,0.614626]
[1744647521303,12.28918,1627.5,1627.1,6.760306]
[1744647521470,6.1448,1627.4,1627.1,6.760306]
[1744647521670,12.28978,1627.4,1627.0,6.69622]
[1744647522006,6.14444,1627.5,1627.1,6.14564]
[1744647522168,6.14444,1627.5,1627.2,6.1455]
[1744647522687,6.14407,1627.6,1627.2,6.20682555]
[1744647523002,0.0513,1627.9,1627.4,12.47959438]
[1744647523323,6.14219,1628.1,1627.6,6.14381]
[1744647523482,6.14193,1628.2,1627.8,6.14306]
[1744647523875,0.05,1628.4,1627.8,0.55]
[1744647524071,0.05,1628.4,1628.2,6.14155]
[1744647524371,6.19099,1628.4,1628.0,9.14236]
[1744647524698,6.19099,1628.4,1628.0,15.28461]
[1744647524897,6.19099,1628.4,1628.0,9.14228]
[1744647525195,6.19099,1628.4,1628.1,6.20352014]
[1744647525518,0.05,1628.4,1628.1,6.20340014]
[1744647525718,0.05,1628.4,1628.1,6.20332014]
[1744647525918,0.05,1628.4,1628.2,6.14153]
[1744647526096,0.05,1628.4,1628.3,0.06140584]
[1744647526301,0.05,1628.4,1628.2,6.14153]
[1744647526724,0.13866224,1628.3,1628.2,6.69153]
[1744647527227,0.13866224,1628.3,1628.2,11.0912954]
[1744647528590,0.05,1628.4,1628.3,9.14137]
[1744647528788,0.05,1628.4,1628.3,23.00947438]
[1744647529300,6.13782,1629.3,1628.9,6.13902]
[1744647529484,12.32502,1629.4,1629.0,6.13856]
[1744647529681,6.13762,1629.3,1628.9,6.13894]
[1744647530186,6.13762,1629.3,1628.9,6.13886]
[1744647530519,0.05,1629.4,1629.1,6.1383]
[1744647530815,12.32493,1629.4,1629.0,6.68871]
[1744647531020,0.05,1629.4,1628.9,3.0]
[1744647531217,6.18724,1629.4,1629.0,0.06137868]
[1744647531405,6.13775,1629.3,1628.9,15.27803]
[1744647531718,6.18723,1629.4,1629.0,6.13855]
[1744647532020,6.13794,1629.3,1628.9,15.27779]
[1744647532227,6.13794,1629.3,1628.9,9.13886]
[1744647532425,6.13789,1629.3,1628.9,9.13886]
[1744647533086,6.18723,1629.4,1629.0,6.20008795]
[1744647533418,6.13803,1629.2,1628.9,3.0]
[1744647533926,12.27627,1629.2,1628.9,3.0]
[1744647534220,12.27625,1629.2,1628.9,3.0]
[1744647534419,12.27625,1629.2,1628.8,6.61086036]
[1744647534420,6.13874,1629.0,1628.8,3.0]
[1744647534635,12.891594,1629.0,1628.6,14.60223]
[1744647534789,6.13919,1628.9,1628.6,8.462]
[1744647534991,6.13919,1628.9,1628.7,0.06139075]
[1744647535243,6.13919,1628.9,1628.6,15.07333118]
[1744647535440,6.13818,1629.2,1628.8,6.68915]
[1744647535717,6.1384,1629.1,1628.7,6.13981]
[1744647535940,6.13801,1629.2,1628.8,6.13914]
[1744647536236,12.27552,1629.3,1628.9,6.13897]
[1744647536386,12.2755,1629.3,1628.9,6.13892]
[1744647536582,6.13798,1629.2,1628.9,6.13892]
[1744647536789,6.18725,1629.4,1629.0,6.13851]
[1744647537013,6.13815,1629.2,1628.9,6.13911]
[1744647537215,6.952515,1629.4,1628.8,3.06137828]
[1744647537487,6.13763,1629.3,1629.0,6.13858]
[1744647537687,0.05,1629.4,1629.1,6.68833]
[1744647537956,0.05,1629.4,1629.2,6.19916852]
[1744647538220,0.05,1629.4,1629.3,12.76639937]
[1744647538426,0.32024696,1630.2,1629.5,9.13652]
[1744647538621,6.13539,1629.9,1629.5,6.13668]
[1744647538982,12.27175,1629.8,1629.4,15.12821]
[1744647539423,6.13583,1629.8,1629.4,20.71511]
[1744647539595,6.1346,1630.1,1629.7,6.13579]
[1744647539791,6.13548,1629.9,1629.6,6.1364]
[1744647540024,6.13548,1629.9,1629.5,6.68677]
[1744647540320,6.13548,1629.9,1629.5,6.13669]
[1744647540526,6.13548,1629.9,1629.6,0.06135409]
[1744647540713,6.13473,1630.1,1629.8,6.13548]
[1744647540909,12.26954,1630.1,1629.8,0.0613468]
[1744647541117,12.26954,1630.1,1629.6,1.16980141]
[1744647541118,0.17147415,1630.1,1629.4,14.5781]
[1744647541304,1.3559,1630.0,1629.2,8.439]
[1744647541636,6.13584,1629.8,1629.5,6.13678]
[1744647542127,12.27092,1629.9,1629.5,6.13668]
[1744647542313,6.13636,1629.7,1629.4,3.0]
[1744647542517,6.13534,1629.9,1629.4,3.0]
[1744647542518,7.49103,1630.0,1629.6,6.13627]
[1744647542715,0.32024696,1630.2,1630.0,0.55]
[1744647542923,0.32024696,1630.2,1630.1,14.59902928]
[1744647543128,0.0807658,1630.3,1630.2,6.68421]
[1744647543328,0.0807658,1630.3,1630.2,9.68421]
[1744647543505,0.0807658,1630.3,1630.2,3.0]
[1744647543707,0.0807658,1630.3,1630.1,8.437]
[1744647544057,6.13448,1630.2,1629.8,6.13562]
[1744647544205,6.13468,1630.1,1629.9,4.0]
[1744647544545,0.11756467,1630.0,1629.9,6.19668729]
[1744647544744,0.11756467,1630.0,1629.9,0.06134729]
[1744647544952,6.13442,1630.2,1629.9,0.06134729]
[1744647545103,6.13422,1630.2,1629.8,6.1354]
[1744647545301,6.25267219,1630.1,1629.7,6.13603]
[1744647545518,6.13496,1630.0,1629.6,10.49969]
[1744647545722,6.13538,1629.9,1629.6,10.49961]
[1744647545921,6.13496,1630.0,1629.7,6.13607]
[1744647546214,0.13909697,1629.8,1629.7,6.13609]
[1744647546419,6.2148358,1630.3,1629.8,0.55]
[1744647546620,6.2148358,1630.3,1629.9,3.0]
[1744647546621,0.0807658,1630.3,1629.9,3.0]
[1744647546855,5.8e-06,1630.3,1630.2,11.14381]
[1744647547076,5.8e-06,1630.3,1630.2,12.10359252]
[1744647547218,5.8e-06,1630.3,1630.2,11.20513168]
[1744647547415,5.8e-06,1630.3,1630.2,13.3000354]
[1744647547677,2.0607,1631.4,1631.3,6.13008]
[1744647547821,2.0607,1631.4,1631.1,6.13083]
[1744647548025,6.13008,1631.3,1630.9,14.56739]
[1744647548257,2.0607,1631.4,1630.9,8.436]
[1744647548421,2.0607,1631.4,1630.7,1.4551]
[1744647548622,6.13133,1631.0,1630.6,6.13265]
[1744647548962,2.031833,1630.9,1630.3,3.0]
[1744647549269,6.13327,1630.5,1630.2,8.436]
[1744647549568,1.985,1631.4,1630.5,6.13308]
[1744647549735,1.985,1631.4,1630.8,4.22270235]